bitfinex/quotes_ETHUSD_20250914
["timestamp","ask_amount","ask_price","bid_price","bid_amount"]
[1757891693691,0.3463,4616.6,4616.5,5.00301758]
[1757891696898,0.3463,4616.6,4616.5,2.8368744]
[1757891697314,0.3463,4616.6,4616.5,5.00301758]
[1757891700431,0.108,4616.6,4616.5,5.00301758]
[1757891702333,0.361,4616.6,4616.5,2.8368744]
[1757891702845,0.361,4616.6,4616.5,5.00301758]
[1757891703211,0.108,4616.6,4616.5,5.00301758]
[1757891704532,1.008,4616.6,4616.5,5.00301758]
[1757891706317,1.2629,4616.6,4616.1,0.4915]
[1757891706657,4.0757,4616.5,4616.1,2.16629103]
[1757891706826,0.2567,4616.2,4616.1,2.16629103]
[1757891707028,3.8927,4616.2,4616.1,2.16629103]
[1757891707356,3.636,4616.2,4616.1,2.16629103]
[1757891708121,0.108,4616.1,4616.0,2.8368744]
[1757891708543,0.4174,4616.1,4616.0,2.8368744]
[1757891709061,0.4174,4616.1,4615.8,0.001]
[1757891709265,0.7879,4616.0,4615.8,0.001]
[1757891709442,5.3,4615.9,4615.8,0.001]
[1757891709630,5.995,4615.9,4615.8,0.001]
[1757891711760,6.51858058,4615.9,4615.8,0.001]
[1757891711945,7.21482864,4615.9,4615.8,0.001]
[1757891712147,7.09354806,4615.9,4615.8,0.001]
[1757891712549,7.21473739,4615.9,4615.8,0.001]
[1757891712930,7.30153287,4615.9,4615.8,0.001]
[1757891713826,15.02513887,4615.9,4615.8,0.001]
[1757891714030,28.84740887,4615.9,4615.8,0.001]
[1757891714257,30.86239687,4615.9,4615.8,0.001]
[1757891714560,29.46058587,4615.9,4615.8,0.001]
[1757891715262,29.33939654,4615.9,4615.8,0.001]
[1757891715968,34.29047167,4615.9,4615.8,0.001]
[1757891716290,43.28741336,4615.9,4615.8,0.001]
[1757891716575,40.45053896,4615.9,4615.8,0.001]
[1757891716781,43.28741336,4615.9,4615.8,0.001]
[1757891716991,16.29832136,4615.9,4615.8,0.001]
[1757891717585,41.29502222,4615.9,4615.8,0.001]
[1757891717949,11.29502222,4615.9,4615.8,0.001]
[1757891718153,11.29489728,4615.9,4615.8,0.001]
[1757891718376,41.29489728,4615.9,4615.8,0.001]
[1757891718563,41.29469056,4615.9,4615.8,0.001]
[1757891718887,46.29799019,4615.9,4615.8,0.001]
[1757891719871,43.46111579,4615.9,4615.8,0.001]
[1757891721050,13.46111579,4615.9,4615.8,0.001]
[1757891721476,43.46111579,4615.9,4615.8,0.001]
[1757891722381,43.92452832,4615.9,4615.8,0.001]
[1757891722988,9.24654369,4615.5,4615.4,0.001]
[1757891723158,39.91796001,4615.5,4615.4,0.001]
[1757891723353,44.3031912,4615.5,4615.4,0.001]
[1757891723683,44.7535912,4615.5,4615.4,0.001]
[1757891724390,42.5869787,4615.5,4615.4,0.001]
[1757891724562,44.72613053,4615.5,4615.4,0.001]
[1757891724885,45.29165435,4615.5,4615.4,0.001]
[1757891725957,47.45826685,4615.5,4615.4,0.001]
[1757891726154,15.29165435,4615.5,4615.4,0.001]
[1757891726388,16.59265435,4615.5,4615.4,0.001]
[1757891726690,46.59265435,4615.5,4615.4,0.001]
[1757891727698,37.98112316,4615.5,4615.4,0.001]
[1757891727920,37.57882316,4615.5,4615.4,0.001]
[1757891728059,41.21582316,4615.5,4615.4,0.001]
[1757891728259,41.21582316,4615.5,4614.7,0.4504]
[1757891728260,33.792,4615.4,4614.8,0.0775]
[1757891728460,3.792,4615.2,4614.8,0.0775]
[1757891728697,3.792,4615.0,4614.8,0.0775]
[1757891728999,15.302155,4614.9,4614.8,0.0775]
[1757891729388,28.44809,4614.9,4614.8,0.0775]
[1757891729587,31.14531489,4614.9,4614.8,0.0775]
[1757891730208,31.19921489,4614.9,4614.8,0.0775]
[1757891730578,39.94202489,4614.9,4614.8,0.0775]
[1757891731213,42.94202489,4614.9,4614.8,0.0775]
[1757891731714,38.46512489,4614.9,4614.8,0.0775]
[1757891731915,42.10312489,4614.9,4614.8,0.0775]
[1757891732716,38.20812489,4614.9,4614.8,0.0775]
[1757891732920,41.84612489,4614.9,4614.8,0.3667]
[1757891733123,41.84612489,4614.9,4614.8,1.2697]
[1757891733886,41.84612489,4614.9,4614.8,0.8204]
[1757891734085,41.84612489,4614.9,4614.8,0.3667]
[1757891734300,41.84612489,4614.9,4614.8,0.0775]
[1757891734920,11.73341489,4614.9,4614.8,1.2697]
[1757891735085,13.23226306,4614.9,4614.8,1.2697]
[1757891735291,13.23226306,4614.9,4614.8,0.0775]
[1757891735691,32.28131606,4614.9,4614.8,0.0775]
[1757891735924,32.40020006,4614.9,4614.8,0.0775]
[1757891736219,23.55406706,4614.9,4614.8,1.2697]
[1757891736423,25.69321889,4614.9,4614.8,1.2697]
[1757891736620,26.75084089,4614.9,4614.8,1.2697]
[1757891736922,26.04205589,4614.9,4614.8,1.2697]
[1757891737605,11.05412489,4614.9,4614.8,1.2697]
[1757891737800,8.91497306,4614.9,4614.8,1.2697]
[1757891738118,9.17657306,4614.9,4614.8,0.0775]
[1757891738319,8.91497306,4614.9,4614.8,0.0775]
[1757891738707,8.91497306,4614.9,4614.8,0.3667]
[1757891738909,8.91529657,4614.9,4614.8,0.0775]
[1757891739120,10.27155767,4614.9,4614.8,0.0775]
[1757891739536,10.00825767,4614.9,4614.8,0.0775]
[1757891739903,10.00825768,4614.9,4614.8,0.3667]
[1757891740706,28.10093668,4614.9,4614.8,0.3667]
[1757891740907,27.40779368,4614.9,4614.8,0.3667]
[1757891741102,32.49099711,4614.9,4614.8,0.3667]
[1757891741905,34.11868011,4614.9,4614.8,0.3667]
[1757891742233,31.32863611,4614.9,4614.8,0.3667]
[1757891742435,20.50545011,4614.9,4614.8,1.2697]
[1757891742635,10.9985,4614.9,4614.8,1.2697]
[1757891742991,2.1565,4614.9,4614.8,3.43664114]
[1757891743238,5.303,4614.9,4614.8,3.45831055]
[1757891748248,0.108,4615.0,4614.9,2.16689419]
[1757891748482,1.665,4615.6,4614.9,1.1922]
[1757891748786,0.002,4616.6,4615.4,2.16665944]
[1757891748787,1.537,4615.5,4615.4,2.16665944]
[1757891748930,1.537,4615.5,4615.4,1.1922]
[1757891749327,1.537,4615.5,4615.4,3.35885944]
[1757891749545,1.537,4615.5,4615.4,4.21142072]
[1757891749932,1.537,4615.5,4615.4,7.49935191]
[1757891750442,1.665,4615.9,4615.6,2.16654344]
[1757891750677,1.665,4615.9,4615.8,5.45440287]
[1757891750841,3.318,4615.9,4615.8,6.64660287]
[1757891751025,3.318,4615.9,4615.8,7.5279175]
[1757891753739,4.218,4615.9,4615.8,7.5279175]
[1757891757089,2.565,4615.9,4615.8,10.5279175]
[1757891757268,0.002,4616.6,4616.5,2.16614318]
[1757891757463,4.205,4616.6,4616.5,5.45407437]
[1757891757661,4.205,4616.6,4616.5,6.33570982]
[1757891757864,4.205,4616.6,4616.5,7.26240982]
[1757891758292,4.5014,4616.6,4616.3,0.65067665]
[1757891758490,4.9565,4616.6,4616.5,2.16614318]
[1757891759176,1.667,4616.6,4616.5,6.24197437]
[1757891759377,5.303,4616.6,4616.5,7.52156047]
[1757891759993,5.303,4616.6,4616.5,7.08496047]
[1757891760975,0.108,4616.5,4615.8,0.6079]
[1757891761313,0.108,4616.5,4616.4,2.1661901]
[1757891761603,5.303,4616.6,4616.4,2.1661901]
[1757891761604,1.667,4616.6,4616.5,2.16614318]
[1757891761756,1.664,4617.0,4616.7,3.28793119]
[1757891761956,3.473,4616.8,4616.7,5.45398053]
[1757891762158,3.473,4616.8,4616.7,6.24248053]
[1757891762891,3.7761,4616.8,4616.7,2.16604934]
[1757891763381,3.473,4616.8,4616.7,6.24248053]
[1757891763584,3.473,4616.8,4616.7,6.68008053]
[1757891763763,3.473,4616.8,4616.7,6.24248053]
[1757891764608,3.473,4616.8,4616.7,7.52094069]
[1757891765862,1.664,4617.0,4616.9,2.16595551]
[1757891766065,1.664,4617.0,4616.9,2.18761506]
[1757891766066,3.758,4617.0,4616.9,2.18761506]
[1757891766264,3.758,4617.0,4616.9,3.41371506]
[1757891766469,0.002,4617.2,4617.1,2.16586168]
[1757891766667,3.637,4617.2,4617.1,8.58345148]
[1757891766869,3.637,4617.2,4617.1,9.78789287]
[1757891767806,0.002,4617.2,4617.1,9.67989287]
[1757891768117,5.299,4617.5,4617.4,2.16572096]
[1757891768266,3.635,4617.5,4617.4,6.41347816]
[1757891768591,3.635,4617.5,4617.4,6.39182096]
[1757891771804,0.18755423,4617.7,4617.5,3.0]
[1757891771977,0.18755423,4617.7,4617.6,6.11439672]
[1757891772183,3.636,4617.8,4617.7,5.16558026]
[1757891772184,1e-08,4617.8,4617.7,5.16558026]
[1757891772496,1.666,4618.2,4617.7,5.16558026]
[1757891772497,1.666,4618.2,4618.1,2.16539269]
[1757891772696,3.602,4618.2,4618.1,6.69656345]
[1757891772866,3.602,4618.2,4618.1,6.67490953]
[1757891773063,3.602,4618.2,4618.1,6.17500953]
[1757891773704,3.602,4618.2,4618.1,6.67490953]
[1757891774064,5.3,4618.2,4618.1,6.67490953]
[1757891774566,1.666,4618.2,4618.1,9.67490953]
[1757891774767,0.002,4618.2,4618.1,9.67490953]
[1757891774993,0.002,4618.2,4618.1,6.38697834]
[1757891775202,0.7429,4618.2,4618.1,5.16539269]
[1757891776294,0.3051,4618.2,4618.1,5.16539269]
[1757891777206,0.002,4618.2,4618.1,5.95389269]
[1757891777606,0.3051,4618.2,4618.1,5.16539269]
[1757891778279,0.002,4618.2,4618.1,5.95389269]
[1757891778477,0.082,4618.8,4618.7,2.16511139]
[1757891778688,0.082,4618.8,4618.7,5.45304258]
[1757891778917,0.082,4618.8,4618.7,6.24154258]
[1757891779776,0.4023,4620.0,4619.9,2.16454901]
[1757891779995,11.737907,4620.0,4619.9,2.16454901]
[1757891780215,13.9316977,4620.0,4619.9,2.16454901]
[1757891780426,10.4283507,4620.0,4619.9,2.16454901]
[1757891780975,13.8516577,4620.0,4619.9,2.16454901]
[1757891781271,10.0841577,4620.0,4619.9,2.16454901]
[1757891781490,7.6139907,4620.0,4619.9,2.16454901]
[1757891781683,7.2116907,4620.0,4619.9,2.16454901]
[1757891781889,6.0379,4620.0,4619.9,4.99892429]
[1757891782198,6.0379,4620.0,4619.9,8.62179957]
[1757891782199,1.664,4620.0,4619.9,8.62179957]
[1757891782398,5.297,4620.0,4619.9,8.62179957]
[1757891782608,5.297,4620.0,4619.9,9.24902654]
[1757891782907,5.297,4620.0,4619.9,9.68662654]
[1757891782908,1e-08,4620.0,4619.9,9.68662654]
[1757891783091,1.663,4620.6,4620.1,2.16443379]
[1757891783294,1.663,4620.6,4619.9,9.68662654]
[1757891783295,3.503,4620.5,4620.3,4.9987369]
[1757891783499,3.503,4620.5,4620.3,5.4986369]
[1757891783809,3.503,4620.5,4620.4,2.16431477]
[1757891784011,3.505,4620.5,4620.4,2.16431477]
[1757891785114,3.505,4620.5,4620.4,2.45291477]
[1757891786012,3.505,4620.5,4620.4,2.16431477]
[1757891786796,0.002,4620.5,4620.4,2.95281477]
[1757891788383,0.002,4620.5,4620.4,3.06081477]
[1757891791704,0.002,4620.5,4620.4,7.68998467]
[1757891791885,0.002,4620.5,4620.4,7.66834153]
[1757891793504,0.002,4620.5,4620.4,11.30034153]
[1757891795100,0.7841,4620.5,4620.4,7.99869005]
[1757891795526,0.3107,4620.5,4620.4,7.99869005]
[1757891795926,0.002,4620.5,4620.4,7.99869005]
[1757891796687,0.3107,4620.5,4620.4,7.99869005]
[1757891798516,0.002,4620.5,4620.4,7.99869005]
[1757891801517,0.7841,4620.5,4620.4,2.16431477]
[1757891801724,0.7841,4620.5,4620.4,4.99869005]
[1757891803509,1.64691,4620.5,4620.4,2.16431477]
[1757891806308,1.64691,4620.5,4620.0,0.001]
[1757891806651,9.291179,4620.4,4620.0,0.001]
[1757891806940,25.443321,4620.3,4620.0,0.001]
[1757891807243,0.3087,4620.1,4620.0,0.001]
[1757891807445,21.60579983,4620.1,4620.0,0.001]
[1757891807612,20.342348,4620.1,4620.0,0.001]
[1757891808112,14.722398,4620.1,4620.0,2.16550216]
[1757891808419,14.003827,4620.1,4620.0,2.16550216]
[1757891808731,15.6613577,4620.1,4620.0,2.16550216]
[1757891809519,19.2923577,4620.1,4620.0,0.001]
[1757891809935,18.8900577,4620.1,4620.0,0.001]
[1757891810136,18.8900577,4620.1,4620.0,2.16550216]
[1757891810757,18.4975527,4620.1,4620.0,2.16550216]
[1757891812038,12.8136347,4620.1,4620.0,2.16550216]
[1757891813755,1.663,4620.4,4620.3,2.16436162]
[1757891813960,1.663,4620.4,4620.3,5.3009369]
[1757891813961,5.294,4620.4,4620.3,5.3009369]
[1757891814162,5.294,4620.4,4620.3,5.7674369]
[1757891814356,1.663,4620.4,4620.3,5.7674369]
[1757891814559,5.294,4620.4,4620.3,7.29206365]
[1757891815160,5.294,4620.4,4620.3,6.84416365]
[1757891815859,5.6041,4620.4,4620.3,4.9987369]
[1757891816236,6.0466,4620.4,4620.3,4.9987369]
[1757891816438,6.0466,4620.4,4620.0,0.001]
[1757891816643,0.108,4620.1,4620.0,2.16549119]
[1757891816827,3.739,4620.1,4620.0,2.16549119]
[1757891817025,4.4916,4620.1,4620.0,2.16549119]
[1757891819062,4.0491,4620.1,4620.0,2.16549119]
[1757891819679,3.739,4620.1,4620.0,2.46579119]
[1757891819849,3.739,4620.1,4620.0,2.16549119]
[1757891820247,3.739,4620.1,4620.0,2.92699119]
[1757891820553,0.002,4620.3,4620.2,2.16440846]
[1757891820752,2.0,4620.3,4620.2,2.16440846]
[1757891820980,2.0,4620.3,4620.2,3.36460846]
[1757891821735,0.002,4620.3,4620.2,14.72617587]
[1757891821976,0.002,4620.3,4620.2,15.16487587]
[1757891822134,0.002,4620.3,4620.2,17.26101258]
[1757891822334,0.002,4620.3,4620.2,20.89201258]
[1757891822663,1e-08,4620.5,4620.4,2.16431477]
[1757891822981,1e-08,4620.5,4620.4,8.81695791]
[1757891823155,1e-08,4620.5,4620.4,10.86292055]
[1757891823674,1e-08,4620.5,4620.4,7.23192055]
[1757891824061,1e-08,4620.5,4620.4,10.86292055]
[1757891824266,1e-08,4620.5,4620.4,5.16431477]
[1757891824581,0.75940001,4620.5,4620.4,2.16431477]
[1757891825646,1.16170001,4620.5,4620.0,0.001]
[1757891826064,1.16170001,4620.5,4620.4,2.16431477]
[1757891826065,0.29180001,4620.5,4620.4,2.16431477]
[1757891826292,0.70848001,4620.5,4620.4,2.16431477]
[1757891826776,1.17608001,4620.5,4620.4,2.16431477]
[1757891827468,0.29180001,4620.5,4620.4,2.16431477]
[1757891827651,3.63100001,4620.5,4620.4,2.16431477]
[1757891827862,3.92280001,4620.5,4620.4,2.16431477]
[1757891831904,3.73900001,4620.5,4620.4,2.46461477]
[1757891832087,0.10800001,4620.5,4620.4,2.92581477]
[1757891832294,1e-08,4620.5,4620.4,3.36451477]
[1757891832605,2.35800001,4620.5,4620.4,3.36451477]
[1757891832932,2.35800001,4620.5,4620.4,2.92581477]
[1757891834618,2.35800001,4620.5,4620.4,2.16431477]
[1757891835014,2.64980001,4620.5,4620.4,2.16431477]
[1757891835190,3.11740001,4620.5,4620.4,2.16431477]
[1757891835391,3.22540001,4620.5,4620.4,2.16431477]
[1757891836292,3.11740001,4620.5,4620.0,0.001]
[1757891836591,0.4676,4620.4,4620.3,2.16434194]
[1757891837290,2.35800001,4620.5,4620.4,2.16431477]
[1757891842323,3.63100001,4620.5,4620.4,3.36451477]
[1757891844546,3.63000001,4620.5,4620.4,7.62988447]
[1757891845108,3.63000001,4620.5,4620.4,5.92581477]
[1757891845309,3.63000001,4620.5,4620.4,5.16431477]
[1757891845539,3.92180001,4620.5,4620.4,5.16431477]
[1757891846926,4.49740001,4620.5,4620.4,5.16431477]
[1757891847544,4.02980001,4620.5,4620.4,5.16431477]
[1757891848425,3.73800001,4620.5,4620.4,5.16431477]
[1757891849248,3.73800001,4620.5,4620.4,5.46461477]
[1757891850647,4.03070001,4620.5,4620.4,5.16431477]
[1757891851343,4.47100001,4620.5,4620.4,5.16431477]
[1757891853053,4.03070001,4620.5,4620.4,5.16431477]
[1757891855128,0.40070001,4620.5,4620.4,5.16431477]
[1757891855360,3.16070001,4620.5,4620.4,5.16431477]
[1757891856056,3.16070001,4620.5,4620.4,2.16431477]
[1757891856280,3.60100001,4620.5,4620.4,2.16431477]
[1757891858343,15.675373,4620.4,4620.3,2.1653579]
[1757891858543,22.677668,4620.4,4620.3,2.1653579]
[1757891858745,31.25664651,4620.4,4620.3,0.001]
[1757891858949,31.45887648,4620.4,4620.3,0.001]
[1757891859254,33.59802831,4620.4,4620.3,0.001]
[1757891861184,33.4766818,4620.4,4620.3,0.001]
[1757891862672,28.8012038,4620.4,4620.3,0.001]
[1757891862975,3.4766818,4620.4,4620.3,0.001]
[1757891863197,26.66205197,4620.4,4620.3,0.001]
[1757891864043,29.16482697,4620.4,4620.3,0.001]
[1757891864445,28.02952697,4620.4,4620.3,0.001]
[1757891864666,0.20222997,4620.4,4620.3,0.001]
[1757891864843,1e-08,4620.5,4620.4,2.16431477]
[1757891865044,1e-08,4620.5,4620.3,1.2156]
[1757891865045,0.108,4620.4,4620.3,0.001]
[1757891865279,0.4007,4620.4,4620.3,2.16536162]
[1757891865578,0.108,4620.4,4620.3,2.16536162]
[1757891867577,0.108,4620.4,4620.3,2.45556162]
[1757891868778,0.108,4620.4,4620.3,2.16536162]
[1757891869093,0.108,4620.4,4620.3,3.37996162]
[1757891869896,3.738,4620.4,4620.3,3.37996162]
[1757891871190,0.108,4620.4,4620.3,3.37996162]
[1757891871395,3.738,4620.4,4620.3,3.37996162]
[1757891871592,0.108,4620.4,4620.3,3.37996162]
[1757891871892,3.738,4620.4,4620.3,3.37996162]
[1757891872263,0.108,4620.4,4620.3,4.26252527]
[1757891872462,1e-08,4620.5,4620.4,2.16431477]
[1757891872664,2.02300001,4620.5,4620.4,6.36794291]
[1757891872864,2.02300001,4620.5,4620.4,6.65814291]
[1757891873065,2.02300001,4620.5,4620.4,7.8560944]
[1757891874370,1e-08,4620.5,4620.4,7.8560944]
[1757891874577,1e-08,4620.5,4620.4,10.8560944]
[1757891874779,0.082,4620.8,4620.7,2.16417425]
[1757891875192,0.082,4620.8,4620.7,6.42747425]
[1757891880531,0.002,4621.4,4621.3,2.16389327]
[1757891880703,0.002,4621.9,4621.4,3.0]
[1757891880704,0.982,4621.9,4621.4,3.0]
[1757891880900,0.982,4621.9,4621.7,8.73663413]
[1757891881405,0.982,4621.9,4621.7,9.69843413]
[1757891881796,0.982,4621.9,4621.7,9.23663413]
[1757891883319,0.982,4621.9,4621.7,9.69843413]
[1757891883942,0.002,4621.9,4621.7,9.69843413]
[1757891885234,1e-08,4621.9,4621.8,5.16365918]
[1757891885438,1e-08,4621.9,4621.8,7.32341067]
[1757891885635,1e-08,4622.1,4622.0,2.16356555]
[1757891885807,1e-08,4622.1,4622.0,5.16356555]
[1757891886004,0.002,4622.9,4622.1,5.16351874]
[1757891886229,0.002,4622.9,4622.8,5.44241927]
[1757891886505,0.002,4622.9,4622.8,2.16319113]
[1757891886712,0.3085,4622.9,4622.8,2.16319113]
[1757891887033,0.7478,4622.9,4622.8,2.16319113]
[1757891888735,0.3085,4622.9,4622.8,2.16319113]
[1757891889243,3.631,4622.9,4622.8,2.16319113]
[1757891889744,3.9375,4622.9,4622.8,2.16319113]
[1757891890051,4.3768,4622.9,4622.8,2.16319113]
[1757891890420,0.002,4622.9,4622.8,2.16319113]
[1757891890762,3.2595,4622.9,4622.8,2.16319113]
[1757891890958,3.6988,4622.9,4622.8,2.16319113]
[1757891891118,4.06868,4622.9,4622.8,2.16319113]
[1757891891540,4.47098,4622.9,4622.8,2.16319113]
[1757891892563,4.47098,4622.9,4621.9,3.27922814]
[1757891892859,4.47098,4622.9,4621.4,0.4618]
[1757891892860,17.848283,4622.8,4621.2,2.16391997]
[1757891893065,32.13915183,4622.7,4621.7,2.1636873]
[1757891893230,9.91741,4622.6,4622.2,2.16347066]
[1757891893428,1.662,4622.5,4622.4,2.16337833]
[1757891893666,0.002,4622.9,4622.6,2.16326262]
[1757891893963,2.397,4622.9,4622.8,3.27922814]
[1757891894151,0.002,4622.9,4622.8,5.73611927]
[1757891894359,3.498,4622.9,4622.8,6.23611927]
[1757891895833,0.002,4622.9,4622.8,10.93843996]
[1757891896039,0.002,4622.9,4622.8,11.04643996]
[1757891896546,1e-08,4623.3,4623.2,2.16300397]
[1757891896748,1e-08,4623.3,4623.2,10.43034016]
[1757891897164,1e-08,4623.3,4623.2,10.87085954]
[1757891897573,1e-08,4623.3,4623.2,10.40905954]
[1757891898294,1e-08,4623.3,4623.2,10.87085954]
[1757891899401,1e-08,4623.3,4623.2,10.40905954]
[1757891900182,1e-08,4623.3,4623.2,10.87085954]
[1757891901575,1e-08,4623.3,4623.2,10.40905954]
[1757891902259,1e-08,4623.3,4623.2,10.87085954]
[1757891903259,1e-08,4623.3,4623.2,10.40905954]
[1757891903856,1e-08,4623.3,4623.2,9.16568684]
[1757891903857,0.30650001,4623.3,4623.2,9.16568684]
[1757891904261,1e-08,4623.3,4623.2,9.45938684]
[1757891904477,1e-08,4623.3,4623.2,9.95938684]
[1757891906087,1e-08,4623.3,4623.2,10.04601184]
[1757891907419,1e-08,4623.3,4623.2,9.95938684]
[1757891907716,1e-08,4623.3,4623.2,9.16568684]
[1757891907918,1e-08,4623.3,4623.2,9.95938684]
[1757891911421,0.30990001,4623.3,4623.2,9.16568684]
[1757891912584,0.30990001,4623.3,4623.2,8.43307879]
[1757891913185,0.75180001,4623.3,4623.2,5.16300397]
[1757891913416,0.75180001,4623.3,4623.2,7.99255941]
[1757891913603,1.15410001,4623.3,4623.2,4.99255941]
[1757891913811,1.28051001,4623.3,4623.2,4.99255941]
[1757891914013,1.28051001,4623.3,4623.1,0.001]
[1757891914215,4.0323,4623.2,4623.1,0.001]
[1757891914651,4.3422,4623.2,4623.1,0.001]
[1757891914931,4.7841,4623.2,4623.1,0.001]
[1757891915095,5.275351,4623.2,4623.1,0.001]
[1757891917745,32.522993,4623.2,4623.1,0.001]
[1757891918601,5.275351,4623.2,4623.1,0.001]
[1757891918829,33.810655,4623.2,4623.1,0.001]
[1757891919029,34.602655,4623.2,4623.1,0.001]
[1757891919238,34.8045042,4623.2,4623.1,0.001]
[1757891919778,36.2692002,4623.2,4623.1,0.001]
[1757891920631,17.6413882,4623.2,4623.1,0.001]
[1757891920832,19.383143,4623.2,4623.1,0.001]
[1757891921072,19.58490998,4623.2,4623.1,0.001]
[1757891921281,19.70597017,4623.2,4623.1,0.001]
[1757891921743,23.22158219,4623.2,4623.1,0.001]
[1757891922080,20.62782019,4623.2,4623.1,0.001]
[1757891922238,21.03012019,4623.2,4623.1,0.001]
[1757891922640,25.54348419,4623.2,4623.1,0.001]
[1757891923861,30.36398319,4623.2,4623.1,0.001]
[1757891924972,31.80886319,4623.2,4623.1,0.001]
[1757891925172,24.53140419,4623.2,4623.1,0.001]
[1757891925649,20.90240419,4623.2,4623.1,0.001]
[1757891925852,22.546393,4623.2,4623.1,0.001]
[1757891926175,22.6673659,4623.2,4623.1,0.001]
[1757891926474,22.546393,4623.2,4623.1,0.001]
[1757891926831,29.491634,4623.2,4623.1,0.001]
[1757891927171,23.08256,4623.2,4623.1,0.001]
[1757891927729,17.623423,4623.2,4623.1,0.001]
[1757891927974,4.871051,4623.2,4623.1,0.001]
[1757891928143,22.7753,4623.2,4623.1,0.001]
[1757891928349,24.09053696,4623.2,4623.1,0.001]
[1757891928552,24.2920914,4623.2,4623.1,0.001]
[1757891928938,36.3878424,4623.2,4623.1,0.001]
[1757891929157,36.38783372,4623.2,4623.1,0.001]
[1757891929931,6.38783372,4623.2,4623.1,0.001]
[1757891930136,36.38783372,4623.2,4623.1,0.001]
[1757891931066,31.15754772,4623.2,4623.1,0.001]
[1757891931379,22.31506502,4623.2,4623.1,0.001]
[1757891931543,22.51656837,4623.2,4623.1,0.001]
[1757891932273,36.38778537,4623.2,4623.1,0.001]
[1757891932665,24.36550037,4623.2,4623.1,0.001]
[1757891933057,21.39133237,4623.2,4623.1,0.001]
[1757891933366,25.01933237,4623.2,4623.1,0.001]
[1757891933571,24.57743237,4623.2,4623.1,0.001]
[1757891933867,25.04023237,4623.2,4623.1,0.001]
[1757891934168,6.00638537,4623.2,4623.1,0.001]
[1757891934366,30.55239537,4623.2,4623.1,0.001]
[1757891934676,30.13496937,4623.2,4623.1,0.001]
[1757891935252,30.70542837,4623.2,4623.1,0.001]
[1757891936387,32.53561037,4623.2,4623.1,0.001]
[1757891936592,27.42526137,4623.2,4623.1,0.001]
[1757891937384,27.76733437,4623.2,4623.1,0.001]
[1757891937548,26.82458837,4623.2,4623.1,0.001]
[1757891938479,27.88455937,4623.2,4623.1,0.001]
[1757891938850,28.28685937,4623.2,4623.1,0.001]
[1757891939284,27.88455937,4623.2,4623.1,0.001]
[1757891939481,39.00638537,4623.2,4623.1,0.001]
[1757891939683,39.40868537,4623.2,4623.1,0.001]
[1757891940049,39.49535917,4623.2,4623.1,0.001]
[1757891940249,39.09305917,4623.2,4623.1,0.001]
[1757891941691,39.49535917,4623.2,4623.1,0.001]
[1757891942492,39.96054171,4623.2,4623.1,0.001]
[1757891944289,39.55824171,4623.2,4623.1,0.001]
[1757891945071,35.46744171,4623.2,4623.1,0.001]
[1757891945267,11.43827491,4623.2,4623.1,0.7677]
[1757891945593,12.56751737,4623.2,4623.1,1.2332]
[1757891946591,7.07679637,4623.2,4623.1,1.2332]
[1757891947587,8.96618137,4623.2,4623.1,1.2332]
[1757891948088,8.96618137,4623.2,4623.1,0.7677]
[1757891948311,10.60579951,4623.2,4623.1,0.001]
[1757891948599,29.74400051,4623.2,4623.1,0.001]
[1757891949159,22.57337151,4623.2,4623.1,0.001]
[1757891949568,4.84725251,4623.2,4623.1,0.001]
[1757891949794,21.62713937,4623.2,4623.1,0.001]
[1757891950455,23.16193937,4623.2,4623.1,0.001]
[1757891950689,35.48523437,4623.2,4623.1,0.001]
[1757891951079,37.14723437,4623.2,4623.1,0.001]
[1757891951255,37.02632098,4623.2,4623.1,0.001]
[1757891951459,39.16547281,4623.2,4623.1,0.001]
[1757891953103,38.73757281,4623.2,4623.1,0.001]
[1757891953305,38.52555681,4623.2,4623.1,0.001]
[1757891953658,8.73757281,4623.2,4623.1,0.001]
[1757891953859,33.00820098,4623.2,4623.1,0.001]
[1757891954185,28.38899098,4623.2,4623.1,0.001]
[1757891954871,32.91432998,4623.2,4623.1,0.001]
[1757891955512,33.34222998,4623.2,4623.1,0.001]
[1757891955897,37.02632098,4623.2,4623.1,0.001]
[1757891956102,39.16547281,4623.2,4623.1,0.001]
[1757891956408,34.12870681,4623.2,4623.1,0.001]
[1757891956786,35.83865781,4623.2,4623.1,0.001]
[1757891957809,35.83943004,4623.2,4623.1,0.001]
[1757891958007,39.16624504,4623.2,4623.1,0.001]
[1757891958875,36.85312804,4623.2,4623.1,0.001]
[1757891959899,12.16624504,4623.2,4623.1,0.001]
[1757891960098,40.49313919,4623.2,4623.1,0.001]
[1757891960878,40.57980829,4623.2,4623.1,0.001]
[1757891962025,10.57980829,4623.2,4623.1,0.001]
[1757891962184,40.57980829,4623.2,4623.1,0.001]
[1757891962581,8.93293531,4623.2,4623.1,0.3093]
[1757891962823,11.85534521,4623.2,4623.1,0.7677]
[1757891962981,12.74883874,4623.2,4623.1,0.7677]
[1757891963181,20.95350874,4623.2,4623.1,0.7677]
[1757891964095,30.80980574,4623.2,4623.1,0.7677]
[1757891964299,30.38879374,4623.2,4623.1,0.7677]
[1757891964500,29.20094574,4623.2,4623.1,0.7677]
[1757891964702,23.33826074,4623.2,4623.1,0.7677]
[1757891965033,20.72865521,4623.2,4623.1,0.7677]
[1757891965214,21.47480921,4623.2,4623.1,0.7677]
[1757891966193,22.11303621,4623.2,4623.1,0.7677]
[1757891966389,8.11341968,4623.2,4623.1,0.7677]
[1757891966594,8.11341968,4623.2,4623.1,1.2332]
[1757891967236,5.49226968,4623.2,4623.1,1.2332]
[1757891967534,12.79181068,4623.2,4623.1,1.2332]
[1757891968233,5.49226968,4623.2,4623.1,1.2332]
[1757891968462,15.73584768,4623.2,4623.1,1.2332]